[Event "World Senior chT-65 2019"]
[Site "Rhodes"]
[Date "2019.04.22"]
[Round "7.39"]
[White "Waterfield, John W"]
[Black "Bhopal, Raj"]
[Result "1/2-1/2"]
[ECO "B92"]
[WhiteElo "1928"]
[BlackElo "1900"]
[Annotator "NA"]
[PlyCount "227"]
[EventDate "2019.04.16"]
[EventType "team-tourn"]
[EventCountry "GRE"]
[SourceTitle "playchess.com"]
[Source "ChessBase"]
[SourceQuality "1"]
[WhiteTeam "Wales"]
[BlackTeam "Scotland"]
[WhiteTeamCountry "WLS"]
[BlackTeamCountry "SCO"]
[TimeControl "40/5400+30:1800+30"]

1. e4 {[%emt 0:00:00]} c5 {[%emt 0:00:00]} 2. Nf3 {[%emt 0:00:00]} d6 {[%emt 0:00:00]} 3. d4 {[%emt 0:00:11]} cxd4 {[%emt 0:00:00]} 4. Nxd4 {[%emt 0:00:03]} Nf6 {[%emt 0:00:00]} 5. Nc3 {[%emt 0:00:05]} a6 {[%emt 0:00:03]} 6. Be2 {[%emt 0:00:07]} e5 {[%emt 0:00:20]} 7. Nb3 {[%emt 0:00:06]} Be7 {[%emt 0:00:07]} 8. Be3 {[%emt 0:00:07]} O-O {[%emt 0:00:31]} 9. g4 {[%emt 0:00:09]} Be6 {[%emt 0:04:06]} 10. g5 {[%emt 0:00:13]} Nfd7 {[%emt 0:01:35]} 11. h4 {[%emt 0:00:12]} Nc5 {[%emt 0:06:28]} 12. Qd2 {[%emt 0:06:16]} Nbd7 {[%emt 0:06:05]} 13. f4 {[%emt 0:04:47]} exf4 {[%emt 0:02:28]} 14. Bxf4 {[%emt 0:00:19]} Nxb3 {[%emt 0:04:11]} 15. axb3 {[%emt 0:00:44]} Ne5 {[%emt 0:01:17]} 16. O-O-O {[%emt 0:09:09]} b5 {[%emt 0:06:16]} 17. Kb1 {[%emt 0:09:06]} Qc7 {[%emt 0:01:45]} 18. Nd5 {[%emt 0:02:36]} Bxd5 {[%emt 0:00:08]} 19. Qxd5 {[%emt 0:00:19]} Rac8 {[%emt 0:03:07]} 20. c3 {[%emt 0:03:17]} Qc6 {[%emt 0:03:53]} 21. Qxc6 {[%emt 0:07:19]} Rxc6 {[%emt 0:00:13]} 22. Bxe5 {[%emt 0:00:13]} dxe5 {[%emt 0:00:02]} 23. Rd7 {[%emt 0:00:15]} Bc5 {[%emt 0:06:30]} 24. Rh3 {[%emt 0:01:55]} Bb6 {[%emt 0:12:41]} 25. Rhd3 {[%emt 0:04:33]} Bf2 {[%emt 0:04:17]} 26. h5 {[%emt 0:02:24]} Rcc8 {[%emt 0:12:57]} 27. R3d6 {[%emt 0:02:58]} Ra8 {[%emt 0:00:27]} 28. g6 {[%emt 0:04:04]} fxg6 {[%emt 0:03:51]} 29. hxg6 {[%emt 0:00:04]} hxg6 {[%emt 0:00:41]} 30. Rxg6 {[%emt 0:00:26]} Rf7 {[%emt 0:00:10]} 31. Rdd6 {[%emt 0:01:33]} Rb8 {[%emt 0:06:13]} 32. b4 {[%emt 0:03:33]} Bh4 {[%emt 0:03:52]} 33. Bg4 {[%emt 0:15:34]} Rf1+ {[%emt 0:04:49]} 34. Ka2 {[%emt 0:02:26]} Bf6 {[%emt 0:01:27]} 35. Bf5 {[%emt 0:01:44]} Kf8 {[%emt 0:00:50]} 36. Rxa6 {[%emt 0:02:42]} Re1 {[%emt 0:01:47]} 37. Rgxf6+ {[%emt 0:02:31]} gxf6 {[%emt 0:00:14]} 38. Rxf6+ {[%emt 0:00:04]} Kg7 {[%emt 0:01:38]} 39. Re6 {[%emt 0:00:06]} Re2 {[%emt 0:03:03]} 40. Rxe5 {[%emt 0:00:00]} Rb7 {[%emt 0:00:00]} 41. Re6 {[%emt 0:03:12]} Rh2 {[%emt 0:04:29]} 42. Rg6+ {[%emt 0:01:08]} Kf8 {[%emt 0:01:11]} 43. Kb3 {[%emt 0:01:30]} Rd2 {[%emt 0:01:24]} 44. Rh6 {[%emt 0:02:30]} Kg8 {[%emt 0:04:20]} 45. e5 {[%emt 0:02:06]} Rf2 {[%emt 0:02:11]} 46. Be4 {[%emt 0:04:57]} Re7 {[%emt 0:01:35]} 47. Bd5+ {[%emt 0:01:55]} Kg7 {[%emt 0:00:31]} 48. Rb6 {[%emt 0:03:45]} Rxe5 {[%emt 0:00:43]} 49. Rxb5 {[%emt 0:00:23]} Ree2 {[%emt 0:00:43]} 50. Rb7+ {[%emt 0:00:15]} Kg6 {[%emt 0:00:57]} 51. Kc4 {[%emt 0:00:18]} Rxb2 {[%emt 0:00:42]} 52. Kc5 {[%emt 0:00:16]} Rf8 {[%emt 0:04:07]} 53. c4 {[%emt 0:01:37]} Kf6 {[%emt 0:02:16]} 54. b5 {[%emt 0:00:49]} Rc8+ {[%emt 0:05:00]} 55. Kd6 {[%emt 0:01:23]} Rd2 {[%emt 0:01:18]} 56. b6 {[%emt 0:00:39]} Rxc4 {[%emt 0:01:04]} 57. Rf7+ {[%emt 0:01:44]} Kg6 {[%emt 0:00:35]} 58. Rc7 {[%emt 0:01:58]} Rb4 {[%emt 0:01:11]} 59. Rc6 {[%emt 0:04:49]} Kf5 {[%emt 0:02:00]} 60. Kc5 {[%emt 0:00:37]} Rdb2 {[%emt 0:00:51]} 61. Be6+ {[%emt 0:02:52]} Ke5 {[%emt 0:00:42]} 62. Bc8 {[%emt 0:01:22]} Rb5+ {[%emt 0:00:47]} 63. Kc4 {[%emt 0:00:37]} Rxb6 {[%emt 0:00:23]} 64. Rxb6 {[%emt 0:02:08]} Rxb6 {[%emt 0:00:02]} 65. Bd7 {[%emt 0:02:16]} Rd6 {[%emt 0:01:22]} 66. Bb5 {[%emt 0:00:30]} Ke4 {[%emt 0:00:33]} 67. Kc3 {[%emt 0:00:22]} Rd4 {[%emt 0:00:30]} 68. Bc6+ {[%emt 0:00:10]} Ke3 {[%emt 0:00:08]} 69. Bb5 {[%emt 0:00:28]} Rd2 {[%emt 0:00:58]} 70. Ba6 {[%emt 0:00:39]} Rf2 {[%emt 0:01:18]} 71. Bb5 {[%emt 0:00:39]} Rf5 {[%emt 0:00:30]} 72. Be8 {[%emt 0:01:10]} Re5 {[%emt 0:00:50]} 73. Bf7 {[%emt 0:00:45]} Rb5 {[%emt 0:00:19]} 74. Bg8 {[%emt 0:00:30]} Rb1 {[%emt 0:00:32]} 75. Kc4 {[%emt 0:00:50]} Rc1+ {[%emt 0:01:10]} 76. Kd5 {[%emt 0:00:30]} Rc8 {[%emt 0:00:40]} 77. Bh7 {[%emt 0:00:55]} Rh8 {[%emt 0:00:34]} 78. Bb1 {[%emt 0:00:33]} Rh6 {[%emt 0:00:34]} 79. Ke5 {[%emt 0:00:17]} Rh1 {[%emt 0:00:55]} 80. Bg6 {[%emt 0:00:13]} Rf1 {[%emt 0:00:27]} 81. Bh7 {[%emt 0:00:24]} Rh1 {[%emt 0:00:50]} 82. Bg6 {[%emt 0:00:05]} Rg1 {[%emt 0:00:14]} 83. Bh7 {[%emt 0:00:06]} Rg5+ {[%emt 0:00:19]} 84. Ke6 {[%emt 0:00:24]} Kf4 {[%emt 0:00:28]} 85. Bb1 {[%emt 0:00:16]} Rb5 {[%emt 0:00:41]} 86. Bc2 {[%emt 0:00:29]} Rc5 {[%emt 0:00:36]} 87. Bb1 {[%emt 0:00:19]} Rc3 {[%emt 0:00:28]} 88. Kd5 {[%emt 0:00:22]} Rb3 {[%emt 0:00:38]} 89. Bh7 {[%emt 0:00:20]} Rb4 {[%emt 0:00:31]} 90. Bg6 {[%emt 0:00:26]} Kg5 {[%emt 0:00:26]} 91. Bh7 {[%emt 0:00:32]} Kf6 {[%emt 0:00:20]} 92. Bd3 {[%emt 0:00:46]} Ke7 {[%emt 0:00:55]} 93. Ke5 {[%emt 0:00:24]} Ra4 {[%emt 0:00:40]} 94. Bh7 {[%emt 0:00:31]} Kf7 {[%emt 0:00:36]} 95. Bb1 {[%emt 0:00:19]} Ra1 {[%emt 0:00:32]} 96. Bc2 {[%emt 0:00:17]} Rc1 {[%emt 0:00:31]} 97. Bb3+ {[%emt 0:00:08]} Ke7 {[%emt 0:00:08]} 98. Bg8 {[%emt 0:00:26]} Rd1 {[%emt 0:00:21]} 99. Bb3 {[%emt 0:00:16]} Re1+ {[%emt 0:00:30]} 100. Kd4 {[%emt 0:00:45]} Kd6 {[%emt 0:00:07]} 101. Bg8 {[%emt 0:00:24]} Rg1 {[%emt 0:00:11]} 102. Ba2 {[%emt 0:00:44]} Rg4+ {[%emt 0:00:14]} 103. Kd3 {[%emt 0:00:35]} Ke5 {[%emt 0:00:19]} 104. Bf7 {[%emt 0:00:35]} Rg3+ {[%emt 0:00:22]} 105. Kc4 {[%emt 0:00:33]} Rg7 {[%emt 0:00:50]} 106. Be8 {[%emt 0:01:15]} Rg4+ {[%emt 0:00:58]} 107. Kc5 {[%emt 0:01:02]} Rg8 {[%emt 0:00:26]} 108. Bd7 {[%emt 0:02:22]} Rg1 {[%emt 0:00:18]} 109. Bh3 {[%emt 0:00:43]} Rc1+ {[%emt 0:00:05]} 110. Kb5 {[%emt 0:00:34]} Rc2 {[%emt 0:00:21]} 111. Bg4 {[%emt 0:00:49]} Kd6 {[%emt 0:01:54]} 112. Bf3 {[%emt 0:00:55]} Rc3 {[%emt 0:00:47]} 113. Bg2 {[%emt 0:00:28]} Rg3 {[%emt 0:00:32]} 114. Bh1 {[%emt 0:00:40] Kd5 [%emt 00:00:16]} 1/2-1/2

[Event "World Senior chT-65 2019"]
[Site "Rhodes"]
[Date "2019.04.22"]
[Round "7.40"]
[White "Dawson, Alastair"]
[Black "Bevan, Peter M"]
[Result "0-1"]
[ECO "E17"]
[WhiteElo "1817"]
[BlackElo "1920"]
[Annotator "NA RC"]
[PlyCount "149"]
[EventDate "2019.04.16"]
[EventType "team-tourn"]
[EventCountry "GRE"]
[SourceTitle "playchess.com"]
[Source "ChessBase"]
[SourceQuality "1"]
[WhiteTeam "Scotland"]
[BlackTeam "Wales"]
[WhiteTeamCountry "SCO"]
[BlackTeamCountry "WLS"]
[TimeControl "40/5400+30:1800+30"]

1. d4 {[%emt 0:00:44]} Nf6 {[%emt 0:00:00]} 2. Nf3 {[%emt 0:00:23]} e6 {[%emt 0:00:20]} 3. g3 {[%emt 0:01:20]} b6 {[%emt 0:01:36]} 4. Bg2 {[%emt 0:00:09]} Bb7 {[%emt 0:00:06]} 5. O-O {[%emt 0:00:18]} Be7 {[%emt 0:01:53]} 6. c4 {[%emt 0:00:34]} O-O {[%emt 0:00:13]} 7. d5 {[%emt 0:07:53]} exd5 {[%emt 0:03:13]} 8. Nh4 {[%emt 0:00:14]} Re8 {[%emt 0:00:18]} 9. Nf5 {[%emt 0:04:41]} c6 {[%emt 0:01:13]} 10. Nxe7+ {[%emt 0:03:33]} Qxe7 {[%emt 0:00:11]} 11. cxd5 {[%emt 0:00:30]} Qxe2 {[%emt 0:00:31]} 12. Qxe2 {[%emt 0:01:59]} Rxe2 {[%emt 0:00:03]} 13. Nc3 {[%emt 0:00:44]} Re8 {[%emt 0:00:17]} 14. d6 {[%emt 0:01:26]} Nd5 {[%emt 0:12:08]} 15. Nxd5 {[%emt 0:01:52]} cxd5 {[%emt 0:00:06]} 16. b4 {[%emt 0:12:23]} Na6 {[%emt 0:04:38]} 17. b5 {[%emt 0:11:30]} Nc5 {[%emt 0:00:52]} 18. Rd1 {[%emt 0:01:01]} Ne4 {[%emt 0:00:52]} 19. Bb2 {[%emt 0:02:31]} Rac8 {[%emt 0:06:42]} 20. Bh3 {[%emt 0:03:14]} Nxf2 {[%emt 0:01:12]} 21. Bxd7 {[%emt 0:02:59]} Nxd1 {[%emt 0:00:16]} 22. Rxd1 {[%emt 0:07:36]} Re2 {[%emt 0:09:42]} 23. Bxc8 {[%emt 0:08:27]} Bxc8 {[%emt 0:00:05]} 24. Rc1 {[%emt 0:00:59]} Bh3 {[%emt 0:00:08]} 25. Rc7 {[%emt 0:05:54]} Rg2+ {[%emt 0:00:42]} 26. Kf1 {[%emt 0:00:09]} Rxb2+ {[%emt 0:01:18]} 27. Ke1 {[%emt 0:00:11]} Rxb5 {[%emt 0:01:10]} 28. Rxa7 {[%emt 0:00:15]} h6 {[%emt 0:00:09]} 29. d7 {[%emt 0:00:20]} Bxd7 {[%emt 0:00:08]} 30. Rxd7 {[%emt 0:00:04]} Kf8 {[%emt 0:00:40]} 31. a4 {[%emt 0:00:33]} Ra5 {[%emt 0:00:06]} 32. Rd6 {[%emt 0:00:13]} Ke7 {[%emt 0:00:11]} 33. Rxb6 {[%emt 0:00:14]} Rxa4 {[%emt 0:00:08]} 34. h3 {[%emt 0:01:22]} Ra2 {[%emt 0:00:24]} 35. Kf1 {[%emt 0:01:01]} Ra4 {[%emt 0:01:16]} 36. Kf2 {[%emt 0:00:24]} Re4 {[%emt 0:00:06]} 37. Kf3 {[%emt 0:00:24]} Re6 {[%emt 0:00:06]} 38. Rb7+ {[%emt 0:01:15]} Kf6 {[%emt 0:00:09]} 39. Rb4 {[%emt 0:00:35]} Ke5 {[%emt 0:00:35]} 40. Ke3 {[%emt 0:00:00]} Ra6 {[%emt 0:00:00]} 41. Rb3 {[%emt 0:02:14]} Rc6 {[%emt 0:00:59]} 42. Kd3 {[%emt 0:00:53]} Rg6 {[%emt 0:00:24]} 43. Ke2 {[%emt 0:00:41]} Kd4 {[%emt 0:00:19]} 44. g4 {[%emt 0:00:53]} Kc4 {[%emt 0:00:12]} 45. Ra3 {[%emt 0:00:57]} d4 {[%emt 0:00:12]} 46. Ra4+ {[%emt 0:00:36]} Kc3 {[%emt 0:00:14]} 47. Ra3+ {[%emt 0:00:17]} Kb4 {[%emt 0:00:07]} 48. Rd3 {[%emt 0:02:05]} Kc4 {[%emt 0:00:08]} 49. Ra3 {[%emt 0:00:26]} Re6+ {[%emt 0:01:27]} 50. Kd2 {[%emt 0:00:07]} Rb6 {[%emt 0:01:22]} 51. Ra2 {[%emt 0:01:48]} Rf6 {[%emt 0:00:44]} 52. Ra4+ {[%emt 0:00:15]} Kd5 {[%emt 0:00:08]} 53. Ra3 {[%emt 0:02:13]} Rf2+ {[%emt 0:00:09]} 54. Ke1 {[%emt 0:00:14]} Rh2 {[%emt 0:00:14]} 55. Ra7 {[%emt 0:00:51]} Rxh3 {[%emt 0:00:16]} 56. Rxf7 {[%emt 0:00:10]} g5 {[%emt 0:00:05]} 57. Kd2 {[%emt 0:02:39]} Ke4 {[%emt 0:02:04]} 58. Re7+ {[%emt 0:00:15]} Kf4 {[%emt 0:00:23]} 59. Rd7 {[%emt 0:00:25]} Kxg4 {[%emt 0:00:24]} 60. Rxd4+ {[%emt 0:00:08]} Kf5 {[%emt 0:00:39]} 61. Rd8 {[%emt 0:01:35]} Rf3 {[%emt 0:01:00]} 62. Rh8 {[%emt 0:00:37]} Kg6 {[%emt 0:00:12]} 63. Ke2 {[%emt 0:00:37]} Rf6 {[%emt 0:00:07]} 64. Rg8+ {[%emt 0:00:37]} Kh5 {[%emt 0:00:11]} 65. Rg7 {[%emt 0:01:09]} g4 {[%emt 0:00:08]} 66. Ra7 {[%emt 0:04:43]} Kh4 {[%emt 0:00:14]} 67. Ra1 {[%emt 0:00:19]} Kh3 {[%emt 0:00:56]} 68. Rh1+ {[%emt 0:00:42]} Kg2 {[%emt 0:00:06]} 69. Rh4 {[%emt 0:01:18]} Re6+ {[%emt 0:00:15]} 70. Kd2 {[%emt 0:00:16]} Kf3 {[%emt 0:00:10]} 71. Rh5 {[%emt 0:00:32]} g3 {[%emt 0:00:14]} 72. Rf5+ {[%emt 0:00:27]} Kg4 {[%emt 0:00:12]} 73. Rf8 {[%emt 0:00:32]} g2 {[%emt 0:00:18]} 74. Rg8+ {[%emt 0:00:15]} Kh3 {[%emt 0:00:06]} 75. Kd3 {[%emt 0:07:12]} 0-1

[Event "World Senior chT-65 2019"]
[Site "Rhodes"]
[Date "2019.04.22"]
[Round "7.41"]
[White "Harestad, Thor Geir"]
[Black "Morriss, Pete"]
[Result "1-0"]
[ECO "D34"]
[WhiteElo "2200"]
[BlackElo "1968"]
[Annotator "NA"]
[PlyCount "71"]
[EventDate "2019.04.16"]
[EventType "team-tourn"]
[EventCountry "GRE"]
[SourceTitle "playchess.com"]
[Source "ChessBase"]
[SourceQuality "1"]
[WhiteTeam "Norway"]
[BlackTeam "Ireland"]
[WhiteTeamCountry "NOR"]
[BlackTeamCountry "IRL"]
[TimeControl "40/5400+30:1800+30"]

1. c4 {[%emt 0:00:00]} Nf6 {[%emt 0:00:23]} 2. g3 {[%emt 0:00:00]} e6 {[%emt 0:00:09]} 3. Bg2 {[%emt 0:00:13]} c5 {[%emt 0:00:09]} 4. Nf3 {[%emt 0:00:15]} Be7 {[%emt 0:00:42]} 5. Nc3 {[%emt 0:00:22]} Nc6 {[%emt 0:00:14]} 6. O-O {[%emt 0:00:30]} O-O {[%emt 0:00:05]} 7. d4 {[%emt 0:00:13]} d5 {[%emt 0:00:11]} 8. cxd5 {[%emt 0:00:14]} exd5 {[%emt 0:00:07]} 9. Bg5 {[%emt 0:00:18]} cxd4 {[%emt 0:07:17]} 10. Nxd4 {[%emt 0:01:27]} h6 {[%emt 0:00:21]} 11. Bf4 {[%emt 0:03:13]} g5 {[%emt 0:08:10]} 12. Be3 {[%emt 0:01:28]} Be6 {[%emt 0:01:45]} 13. Rc1 {[%emt 0:02:27]} Ng4 {[%emt 0:05:00]} 14. Nxc6 {[%emt 0:00:41]} bxc6 {[%emt 0:00:55]} 15. Bd2 {[%emt 0:02:08]} Rc8 {[%emt 0:07:56]} 16. e4 {[%emt 0:07:07]} d4 {[%emt 0:05:05]} 17. Na4 $11 {[%emt 0:02:01]} c5 {[%emt 0:03:06]} 18. b3 {[%emt 0:02:43]} Ne5 {[%emt 0:04:53]} 19. f4 {[%emt 0:03:18]} Nd3 {[%emt 0:17:35]} 20. Rc2 {[%emt 0:03:40]} f5 {[%emt 0:05:45]} 21. Qe2 {[%emt 0:07:36]} Nb4 {[%emt 0:00:46]} 22. Rb2 {[%emt 0:03:02]} g4 {[%emt 0:03:01]} 23. Bxb4 {[%emt 0:00:46]} d3 {[%emt 0:01:30]} 24. Qd2 {[%emt 0:05:12]} cxb4 {[%emt 0:01:36]} 25. e5 {[%emt 0:04:04]} Qd4+ {[%emt 0:03:47]} 26. Qf2 {[%emt 0:02:06]} Rfd8 {[%emt 0:02:06]} 27. Rd1 {[%emt 0:01:08]} Qd7 {[%emt 0:03:55]} 28. Rbd2 {[%emt 0:01:59]} Rc2 {[%emt 0:06:23]} 29. Qe3 {[%emt 0:00:54]} Rxd2 {[%emt 0:03:53]} 30. Rxd2 {[%emt 0:02:53]} Bc4 {[%emt 0:02:17]} 31. bxc4 {[%emt 0:01:08]} Qxa4 {[%emt 0:00:06]} 32. Bd5+ {[%emt 0:00:31]} Kg7 {[%emt 0:00:31]} 33. Qxd3 {[%emt 0:02:30]} Qa5 {[%emt 0:01:18]} 34. Qxf5 {[%emt 0:02:01]} Bc5+ {[%emt 0:01:35]} 35. Kh1 {[%emt 0:02:43]} Qc7 {[%emt 0:01:13]} 36. Qf6+ {[%emt 0:00:59]} 1-0

[Event "World Senior chT-65 2019"]
[Site "Rhodes"]
[Date "2019.04.22"]
[Round "7.42"]
[White "Carlile, Orison"]
[Black "Steedman, James"]
[Result "1/2-1/2"]
[ECO "B20"]
[WhiteElo "2037"]
[BlackElo "2127"]
[Annotator "NA"]
[PlyCount "51"]
[EventDate "2019.04.16"]
[EventType "team-tourn"]
[EventCountry "GRE"]
[SourceTitle "playchess.com"]
[Source "ChessBase"]
[SourceQuality "1"]
[WhiteTeam "Ireland"]
[BlackTeam "Norway"]
[WhiteTeamCountry "IRL"]
[BlackTeamCountry "NOR"]
[TimeControl "40/5400+30:1800+30"]

1. e4 {[%emt 0:00:00]} c5 {[%emt 0:00:00]} 2. a3 {[%emt 0:00:00]} g6 {[%emt 0:03:09]} 3. d4 {[%emt 0:00:32]} cxd4 {[%emt 0:00:31]} 4. c3 {[%emt 0:00:23]} dxc3 {[%emt 0:03:50]} 5. Nxc3 {[%emt 0:00:08]} Bg7 {[%emt 0:00:23]} 6. Nf3 {[%emt 0:02:29]} Nc6 {[%emt 0:00:40]} 7. Bc4 {[%emt 0:00:51]} d6 {[%emt 0:00:43]} 8. Qb3 {[%emt 0:03:20]} e6 {[%emt 0:02:01]} 9. Bf4 {[%emt 0:01:12]} a6 {[%emt 0:02:38]} 10. Rd1 {[%emt 0:04:30]} Na5 {[%emt 0:04:42]} 11. Qb4 {[%emt 0:20:28]} Nxc4 {[%emt 0:04:41]} 12. Qxc4 {[%emt 0:00:14]} Bd7 {[%emt 0:01:30]} 13. Bxd6 {[%emt 0:04:54]} Ne7 {[%emt 0:01:53]} 14. O-O {[%emt 0:07:45]} O-O {[%emt 0:01:21]} 15. Qb4 {[%emt 0:04:15]} Re8 {[%emt 0:00:47]} 16. Qxb7 {[%emt 0:06:42]} Qc8 {[%emt 0:03:56]} 17. Qxc8 {[%emt 0:03:23]} Raxc8 {[%emt 0:01:53]} 18. Be5 {[%emt 0:00:56]} Bb5 {[%emt 0:02:05]} 19. Nxb5 {[%emt 0:02:14]} axb5 {[%emt 0:00:03]} 20. Bxg7 {[%emt 0:02:10]} Kxg7 {[%emt 0:00:02]} 21. Nd4 {[%emt 0:02:48]} b4 {[%emt 0:01:55]} 22. axb4 {[%emt 0:04:08]} Rc4 {[%emt 0:02:23]} 23. b5 {[%emt 0:01:55]} e5 {[%emt 0:14:06]} 24. Nc6 {[%emt 0:06:51]} Nxc6 {[%emt 0:05:03]} 25. bxc6 {[%emt 0:00:03]} Rxc6 {[%emt 0:00:18]} 26. Rc1 {[%emt 0:00:27]} 1/2-1/2

[Event "World Senior chT-65 2019"]
[Site "Rhodes"]
[Date "2019.04.22"]
[Round "7.43"]
[White "Melkeraen, Terje"]
[Black "Murray, Jim G."]
[Result "0-1"]
[ECO "D94"]
[WhiteElo "2006"]
[BlackElo "1845"]
[Annotator "NA"]
[PlyCount "44"]
[EventDate "2019.04.16"]
[EventType "team-tourn"]
[EventCountry "GRE"]
[SourceTitle "playchess.com"]
[Source "ChessBase"]
[SourceQuality "1"]
[WhiteTeam "Norway"]
[BlackTeam "Ireland"]
[WhiteTeamCountry "NOR"]
[BlackTeamCountry "IRL"]
[TimeControl "40/5400+30:1800+30"]

1. d4 {[%emt 0:02:03]} Nf6 {[%emt 0:00:00]} 2. c4 {[%emt 0:00:11]} g6 {[%emt 0:00:01]} 3. Nc3 {[%emt 0:00:09]} d5 {[%emt 0:00:21]} 4. cxd5 {[%emt 0:00:16]} Nxd5 {[%emt 0:00:07]} 5. Nf3 {[%emt 0:00:10]} Bg7 {[%emt 0:00:36]} 6. e3 {[%emt 0:00:10]} O-O {[%emt 0:00:33]} 7. Bc4 {[%emt 0:00:07]} Nxc3 {[%emt 0:08:47]} 8. bxc3 {[%emt 0:00:16]} c5 {[%emt 0:00:10]} 9. O-O {[%emt 0:00:19]} Nc6 {[%emt 0:07:38]} 10. a4 {[%emt 0:02:28]} Qc7 {[%emt 0:13:25]} 11. Ba3 {[%emt 0:08:04]} b6 {[%emt 0:02:18]} 12. Qe2 {[%emt 0:09:48]} Bb7 {[%emt 0:02:02]} 13. Rac1 {[%emt 0:04:55]} Na5 {[%emt 0:04:24]} 14. dxc5 {[%emt 0:08:38]} Nxc4 {[%emt 0:07:12]} 15. Qxc4 {[%emt 0:00:56]} Rac8 {[%emt 0:00:28]} 16. Rfd1 {[%emt 0:15:45]} bxc5 {[%emt 0:04:54]} 17. Rd2 {[%emt 0:13:30]} Rfd8 {[%emt 0:05:52]} 18. Rcd1 {[%emt 0:00:00]} Rxd2 {[%emt 0:00:29]} 19. Rxd2 {[%emt 0:00:00]} e6 {[%emt 0:04:33]} 20. h3 {[%emt 0:10:16]} Bd5 {[%emt 0:02:06]} 21. Qa6 {[%emt 0:02:11]} Rb8 {[%emt 0:04:37]} 22. Rd1 {[%emt 0:07:11]} Rb3 {[%emt 0:01:53]} 0-1

[Event "World Senior chT-65 2019"]
[Site "Rhodes"]
[Date "2019.04.22"]
[Round "7.44"]
[White "Lynch, Peter J."]
[Black "Bjorgvik, Jan Arne"]
[Result "0-1"]
[ECO "D26"]
[WhiteElo "1696"]
[BlackElo "1779"]
[Annotator "NA"]
[PlyCount "93"]
[EventDate "2019.04.16"]
[EventType "team-tourn"]
[EventCountry "GRE"]
[SourceTitle "playchess.com"]
[Source "ChessBase"]
[SourceQuality "1"]
[WhiteTeam "Ireland"]
[BlackTeam "Norway"]
[WhiteTeamCountry "IRL"]
[BlackTeamCountry "NOR"]
[TimeControl "40/5400+30:1800+30"]

1. e4 {[%emt 0:00:00]} c6 {[%emt 0:00:00]} 2. c4 {[%emt 0:00:07]} d5 {[%emt 0:00:06]} 3. exd5 {[%emt 0:00:09]} cxd5 {[%emt 0:00:09]} 4. cxd5 {[%emt 0:00:09]} Qxd5 {[%emt 0:01:54]} 5. Nc3 {[%emt 0:00:40]} Qd8 {[%emt 0:00:48]} 6. d4 {[%emt 0:00:31]} e6 {[%emt 0:01:38]} 7. Nf3 {[%emt 0:02:39]} Nc6 {[%emt 0:03:48]} 8. Bc4 {[%emt 0:03:45]} Nf6 {[%emt 0:01:56]} 9. a3 {[%emt 0:02:10]} h6 {[%emt 0:02:43]} 10. O-O {[%emt 0:00:37]} Be7 {[%emt 0:01:27]} 11. Re1 {[%emt 0:01:13]} O-O {[%emt 0:00:40]} 12. Bf4 {[%emt 0:08:55]} a6 {[%emt 0:01:17]} 13. d5 {[%emt 0:04:56]} exd5 {[%emt 0:01:45]} 14. Nxd5 {[%emt 0:00:42]} Nxd5 {[%emt 0:02:02]} 15. Bxd5 {[%emt 0:04:33]} Bf6 {[%emt 0:03:55]} 16. Qd2 {[%emt 0:06:18]} Nd4 {[%emt 0:11:39]} 17. Rad1 {[%emt 0:09:38]} Qxd5 {[%emt 0:06:52]} 18. Nxd4 {[%emt 0:00:50]} Bg4 {[%emt 0:07:10]} 19. f3 {[%emt 0:06:12]} Rad8 {[%emt 0:05:39]} 20. Re4 {[%emt 0:05:22]} Bf5 {[%emt 0:04:29]} 21. Nxf5 {[%emt 0:05:18]} Qxf5 {[%emt 0:01:25]} 22. Bd6 {[%emt 0:03:12]} Rd7 {[%emt 0:06:54]} 23. Qc2 {[%emt 0:15:39]} Be7 {[%emt 0:06:48]} 24. Bxe7 {[%emt 0:02:30]} Rxe7 {[%emt 0:00:30]} 25. Rdd4 {[%emt 0:01:29]} Rc8 {[%emt 0:03:34]} 26. Rc4 {[%emt 0:02:04]} Rxc4 {[%emt 0:02:07]} 27. Qxc4 {[%emt 0:00:27]} Rxe4 {[%emt 0:01:48]} 28. Qxe4 {[%emt 0:01:10]} Qc5+ {[%emt 0:01:08]} 29. Kf1 {[%emt 0:00:52]} Qc1+ {[%emt 0:00:12]} 30. Qe1 {[%emt 0:02:43]} Qc4+ {[%emt 0:03:12]} 31. Qe2 {[%emt 0:01:02]} Qc6 {[%emt 0:01:39]} 32. Kf2 {[%emt 0:00:15]} a5 {[%emt 0:00:43]} 33. Qe4 {[%emt 0:01:41]} Qb6+ {[%emt 0:02:10]} 34. Kg3 {[%emt 0:00:34]} Kf8 {[%emt 0:02:15]} 35. b4 {[%emt 0:00:15]} axb4 {[%emt 0:01:48]} 36. Qxb4+ {[%emt 0:00:10]} Qxb4 {[%emt 0:00:11]} 37. axb4 {[%emt 0:00:02]} Ke7 {[%emt 0:00:16]} 38. Kf4 {[%emt 0:00:10]} Kd6 {[%emt 0:00:24]} 39. Ke4 {[%emt 0:00:17]} Kc6 {[%emt 0:00:15]} 40. Kd4 {[%emt 0:00:00]} Kb5 {[%emt 0:00:00]} 41. Kc3 {[%emt 0:00:23]} Ka4 {[%emt 0:01:44]} 42. h4 {[%emt 0:00:37]} g6 {[%emt 0:00:58]} 43. g4 {[%emt 0:01:27]} g5 {[%emt 0:01:19]} 44. hxg5 {[%emt 0:03:13]} hxg5 {[%emt 0:00:15]} 45. Kc4 {[%emt 0:00:19]} b6 {[%emt 0:00:17]} 46. Kc3 {[%emt 0:08:38]} b5 47. Kd4 {[%emt 0:00:19]} 0-1

[Event "World Senior chT-65 2019"]
[Site "Rhodes"]
[Date "2019.04.23"]
[Round "8.3"]
[White "Rashkovsky, Nukhim N"]
[Black "Sharif, Mehrshad"]
[Result "1/2-1/2"]
[ECO "D37"]
[WhiteElo "2488"]
[BlackElo "2331"]
[Annotator "RC"]
[PlyCount "43"]
[EventDate "2019.04.16"]
[EventType "team-tourn"]
[EventCountry "GRE"]
[SourceTitle "playchess.com"]
[Source "ChessBase"]
[SourceQuality "1"]
[WhiteTeam "Russia"]
[BlackTeam "France"]
[WhiteTeamCountry "RUS"]
[BlackTeamCountry "FRA"]
[TimeControl "40/5400+30:1800+30"]

1. d4 {[%emt 0:00:06]} d5 {[%emt 0:00:00]} 2. Nf3 {[%emt 0:00:12]} Nf6 {[%emt 0:00:03]} 3. c4 {[%emt 0:00:04]} e6 {[%emt 0:00:11]} 4. e3 {[%emt 0:00:05]} Nbd7 {[%emt 0:00:19]} 5. Nc3 {[%emt 0:00:26]} a6 {[%emt 0:00:16]} 6. a4 {[%emt 0:12:57]} b6 {[%emt 0:02:31]} 7. cxd5 {[%emt 0:09:43]} exd5 {[%emt 0:01:04]} 8. Ne5 {[%emt 0:00:31]} Bb7 {[%emt 0:00:59]} 9. f4 {[%emt 0:00:18]} Bb4 {[%emt 0:11:34]} 10. Bd3 {[%emt 0:01:33]} O-O {[%emt 0:03:13]} 11. O-O {[%emt 0:00:09]} c5 {[%emt 0:02:58]} 12. Bd2 {[%emt 0:06:20]} Qe7 {[%emt 0:05:39]} 13. Be1 {[%emt 0:02:10]} cxd4 {[%emt 0:11:23]} 14. exd4 {[%emt 0:00:06]} Ne4 {[%emt 0:00:47]} 15. Qb3 {[%emt 0:20:19]} Bxc3 {[%emt 0:02:18]} 16. bxc3 {[%emt 0:00:12]} Rac8 {[%emt 0:07:39]} 17. Rf3 {[%emt 0:03:48]} Nxe5 {[%emt 0:02:44]} 18. fxe5 {[%emt 0:00:50]} Rc6 {[%emt 0:16:34]} 19. Qxd5 {[%emt 0:01:54]} Rxc3 {[%emt 0:00:17]} 20. Qa2 {[%emt 0:00:06]} Rc7 {[%emt 0:06:58]} 21. Qe2 {[%emt 0:17:45]} Qd7 {[%emt 0:03:10]} 22. Qe3 {[%emt 0:00:04]} 1/2-1/2